[Event "European Women Rapid-ch 2023"]
[Site "Monaco"]
[Date "2024.01.13"]
[Round "2.18"]
[White "Zhukova, Natalia"]
[Black "Zvereva, Marija"]
[Result "1-0"]
[ECO "A55"]
[WhiteElo "2301"]
[BlackElo "2049"]
[Annotator "TA"]
[PlyCount "67"]
[EventDate "2023.12.19"]
[EventType "swiss"]
[EventCountry "MNC"]
[SourceTitle "playchess.com"]
[Source "ChessBase"]
[SourceQuality "1"]
[TimeControl "900+10"]

{[%evp 18,67,68,47,79,44,81,48,77,56,100,56,91,47,87,83,95,102,95,101,98,81,102,0,94,4,95,0,127,-19,105,85,148,129,137,133,134,132,248,151,144,134,350,331,700,699,627,571,1106,869,892,872]} 1. c4 {[%emt 0:00:46]} Nf6 {[%emt 0:00:05]} 2. Nc3 {[%emt 0:00:02]} d6 {[%emt 0:00:26]} 3. d4 {[%emt 0:00:08]} Nbd7 {[%emt 0:00:05]} 4. Nf3 {[%emt 0:00:07]} e5 {[%emt 0:00:14]} 5. e4 {[%emt 0:00:05]} Be7 {[%emt 0:00:08]} 6. Be2 {[%emt 0:00:03]} O-O {[%emt 0:00:04]} 7. O-O {[%emt 0:00:03]} c6 {[%emt 0:00:10]} 8. h3 {[%emt 0:00:08]} Qc7 {[%emt 0:00:23]} 9. Be3 {[%emt 0:00:07]} Re8 {[%emt 0:00:13]} 10. Qc2 {[%emt 0:00:09]} Bf8 {[%emt 0:00:43]} 11. Rfe1 {[%emt 0:00:16]} g6 {[%emt 0:00:36]} 12. Rad1 {[%emt 0:00:07]} Bg7 {[%emt 0:01:03] White is slightly better.} 13. Bf1 {[%emt 0:00:55]} Nh5 {[%emt 0:03:05]} 14. g3 {[%emt 0:01:41]} a6 {[%emt 0:00:35]} 15. a4 {[%emt 0:01:45]} Qa5 {[%emt 0:01:45]} 16. d5 {[%emt 0:00:55]} c5 {[%emt 0:00:30]} 17. Nh2 {[%emt 0:00:31]} Nf8 {[%emt 0:00:39]} 18. Ng4 {[%emt 0:00:46]} Qc7 {[%emt 0:01:53]} 19. Bd3 {[%emt 0:00:45]} Qe7 {[%emt 0:00:11]} 20. Kh2 {[%emt 0:00:22]} (20. Ra1 $16) 20... Rb8 {[%emt 0:00:16]} (20... Nf4 $1 $11) 21. Rb1 {[%emt 0:01:28] White is more active.} (21. f3 $16) 21... b6 {[%emt 0:00:31]} (21... Nf4 $1 $11) 22. b4 {[%emt 0:00:20]} (22. Kg1 $16) 22... Bd7 {[%emt 0:00:47]} (22... cxb4 $1 $11 23. Rxb4 Nf4) 23. Rb3 {[%emt 0:02:52]} (23. Rg1 $16) 23... Rec8 {[%emt 0:00:34]} (23... Nf4 $11 {keeps the balance.}) 24. Reb1 {[%emt 0:00:15] bxc5 would now be deadly.} Qd8 {[%emt 0:00:12]} (24... cxb4 $142 25. Rxb4 Nf4) 25. bxc5 {[%emt 0:01:19]} bxc5 {[%emt 0:00:06]} 26. Nh6+ {[%emt 0:00:09]} Bxh6 {[%emt 0:00:05]} 27. Bxh6 {[%emt 0:00:01]} f6 {[%emt 0:00:19]} (27... Nf6 $16 28. Qb2 Rxb3 29. Qxb3 Rc7) 28. Rb7 {[%emt 0:01:20]} Rxb7 {[%emt 0:01:31]} 29. Rxb7 {[%emt 0:00:01] And now Qb2 would win.} g5 $2 {[%emt 0:00:11] [#] This costs Black the game.} (29... Rb8 $16 {was necessary.} 30. Qb3 Rxb7 31. Qxb7 Bc8) 30. Qb3 {[%emt 0:00:33]} Ng6 $2 {[%emt 0:00:18]} (30... Ng7 31. Bxg7 Kxg7) 31. Be2 $18 {[%emt 0:00:01] White is clearly winning.} Ng7 {[%emt 0:00:08]} 32. Bg4 {[%emt 0:00:18]} Rc7 {[%emt 0:00:21]} 33. Bxg7 {[%emt 0:00:40] [#] Threatens to win with Qb6.} Bxg4 {[%emt 0:01:42]} 34. hxg4 {[%emt 0:00:49] Weighted Error Value: White=0.41/Black=0.78.  Loses game:     	---       	Black=1      Mistake:       	White=4     	Black=7      Inaccurate:     	White=5     	Black=5      OK:         	White=4     	Black=2      Best:        	---       	Black=2} 1-0

[Event "European Women Rapid-ch 2023"]
[Site "Monaco"]
[Date "2024.01.13"]
[Round "2.19"]
[White "Rudzinska, Michalina"]
[Black "Bensdorp-De Labaca, Marlies"]
[Result "1-0"]
[ECO "C01"]
[WhiteElo "2241"]
[BlackElo "2237"]
[Annotator "ChessBase"]
[PlyCount "77"]
[EventDate "2023.12.19"]
[EventType "swiss"]
[EventCountry "MNC"]
[SourceTitle "playchess.com"]
[Source "ChessBase"]
[SourceQuality "1"]
[TimeControl "900+10"]

1. e4 {[%emt 0:00:02]} e6 {[%emt 0:00:01]} 2. d4 {[%emt 0:00:03]} d5 {[%emt 0:00:01]} 3. Bd3 {[%emt 0:00:03]} Nf6 {[%emt 0:00:11]} 4. e5 {[%emt 0:00:08]} Nfd7 {[%emt 0:00:01]} 5. f4 {[%emt 0:00:27]} c5 {[%emt 0:00:03]} 6. c3 {[%emt 0:00:03]} Nc6 {[%emt 0:00:03]} 7. Nf3 {[%emt 0:00:02]} a6 {[%emt 0:01:39]} 8. O-O {[%emt 0:00:18]} g6 {[%emt 0:00:22]} 9. Be3 {[%emt 0:00:21]} Be7 {[%emt 0:00:14]} 10. a3 {[%emt 0:00:29]} b6 {[%emt 0:00:43]} 11. b4 {[%emt 0:00:10]} Bb7 {[%emt 0:00:08]} 12. Nbd2 {[%emt 0:01:21]} Qc7 {[%emt 0:00:14]} 13. Rb1 {[%emt 0:01:43]} Na7 {[%emt 0:02:44]} 14. Bf2 {[%emt 0:03:26]} c4 {[%emt 0:01:15]} 15. Be2 {[%emt 0:00:08]} b5 {[%emt 0:01:40]} 16. a4 {[%emt 0:00:14]} bxa4 {[%emt 0:00:07]} 17. Qxa4 {[%emt 0:00:06]} Nb5 {[%emt 0:00:13]} 18. Rfc1 {[%emt 0:00:17]} Bc6 {[%emt 0:00:22]} 19. Qd1 {[%emt 0:00:40]} a5 {[%emt 0:00:28]} 20. bxa5 {[%emt 0:00:39]} Rxa5 {[%emt 0:00:01]} 21. Bh4 {[%emt 0:00:19]} Ba3 {[%emt 0:00:09]} 22. Rc2 {[%emt 0:00:12]} O-O {[%emt 0:00:35]} 23. Ra1 {[%emt 0:00:20]} Rfa8 {[%emt 0:00:03]} 24. g4 {[%emt 0:01:52]} Bf8 {[%emt 0:00:10]} 25. Rxa5 {[%emt 0:00:05]} Qxa5 {[%emt 0:00:01]} 26. Nb1 {[%emt 0:00:10]} Qa1 {[%emt 0:00:13]} 27. f5 {[%emt 0:00:42]} Nc7 {[%emt 0:00:40]} 28. Qf1 {[%emt 0:00:30]} Rb8 {[%emt 0:00:25]} 29. Rc1 {[%emt 0:00:07]} Rb2 {[%emt 0:01:08]} 30. Ng5 {[%emt 0:00:25]} exf5 {[%emt 0:00:16]} 31. gxf5 {[%emt 0:00:05]} h6 {[%emt 0:00:46]} 32. fxg6 {[%emt 0:00:11]} f6 {[%emt 0:00:21]} 33. Nh7 {[%emt 0:00:44]} Qa2 {[%emt 0:01:08]} 34. Nxf6+ {[%emt 0:00:17]} Nxf6 {[%emt 0:00:19]} 35. exf6 {[%emt 0:00:38]} Ne6 {[%emt 0:00:14]} 36. Bg4 {[%emt 0:00:59]} Bd7 {[%emt 0:03:07]} 37. Bxe6+ {[%emt 0:00:15]} Bxe6 {[%emt 0:00:09]} 38. f7+ {[%emt 0:00:03]} Kh8 {[%emt 0:00:11]} 39. Bf6+ {[%emt 0:00:07]} 1-0

[Event "European Women Rapid-ch 2023"]
[Site "Monaco"]
[Date "2024.01.13"]
[Round "2.20"]
[White "Hrebenshchykova, Yelyzaveta"]
[Black "Mrvova, Alena"]
[Result "1-0"]
[ECO "B42"]
[WhiteElo "2275"]
[BlackElo "2160"]
[Annotator "TA"]
[PlyCount "81"]
[EventDate "2023.12.19"]
[EventType "swiss"]
[EventCountry "MNC"]
[SourceTitle "playchess.com"]
[Source "ChessBase"]
[SourceQuality "1"]
[TimeControl "900+10"]

{[%evp 15,81,40,45,27,37,0,20,32,31,41,35,0,162,137,138,84,91,61,80,-17,104,20,22,-74,0,-63,33,25,43,48,33,30,154,0,653,666,695,689,751,444,431,267,272,274,275,272,291,276,277,286,342,337,339,329,428,430,423,404,399,404,410,412,418,417,409,383,2133,2069]} 1. e4 {[%emt 0:00:01]} c5 {[%emt 0:00:03]} 2. Nf3 {[%emt 0:00:02]} e6 {[%emt 0:00:05]} 3. d4 {[%emt 0:00:04]} cxd4 {[%emt 0:00:02]} 4. Nxd4 {[%emt 0:00:02]} a6 {[%emt 0:00:01]} 5. Bd3 {[%emt 0:00:41]} Qc7 {[%emt 0:00:05]} 6. O-O {[%emt 0:00:11]} Nf6 {[%emt 0:00:11]} 7. Qe2 {[%emt 0:00:05]} d6 {[%emt 0:00:08]} 8. c4 {[%emt 0:01:15]} Nbd7 {[%emt 0:00:12][%cal Bb8d7,Bd7e5,Be5d3][%mdl 32]} 9. Nc3 {[%emt 0:00:31]} Ne5 {[%emt 0:00:29]} 10. Kh1 {[%emt 0:01:13]} Be7 {[%emt 0:00:48]} 11. f4 {[%emt 0:00:57][%cal Bf2f4,Bf4f5,Bf5f6][%mdl 32] The position is equal.} Nxd3 {[%emt 0:00:03]} 12. Qxd3 {[%emt 0:00:01]} O-O {[%emt 0:00:12]} 13. f5 {[%emt 0:01:01]} g6 $2 {[%emt 0:01:05]} (13... Bd7 $11) 14. Bh6 {[%emt 0:01:44]} Re8 {[%emt 0:00:35]} 15. Bg5 {[%emt 0:01:19] White is much more active.} (15. Nxe6 $142 Bxe6 (15... fxe6 16. fxg6 Kh8 17. e5 $18) 16. fxe6 fxe6 17. Qh3 Qxc4 18. Rac1) 15... Ng4 $16 {[%emt 0:01:15]} 16. f6 {[%emt 0:00:46]} Bf8 {[%emt 0:00:02][%cal Od6d5] [#]} 17. Qh3 {[%emt 0:00:02]} ({White should play} 17. Qg3 $1 $16 {[%cal Rg3g4]} Qxc4 18. Nf3) 17... h5 {[%emt 0:00:55] [#]} (17... e5 $1 $11 {keeps the balance.} 18. Nf5 Qxc4 (18... gxf5 19. exf5 Qxc4 20. Rad1 $11)) 18. Nde2 {[%emt 0:02:22]} (18. Qh4 $1 $16) 18... Qxc4 $11 {[%emt 0:02:42]} 19. Qg3 {[%emt 0:01:14]} (19. Qh4 $11) 19... Qc5 {[%emt 0:00:30]} (19... Bd7 $17) 20. Bf4 {[%emt 0:00:59]} (20. Qh4 $11) 20... e5 {[%emt 0:02:53]} (20... Nxf6 $2 {loses.} 21. Be3 Qe5 (21... h4 $2 22. Qf3 $18) 22. Qf3 $18 (22. Qxe5 dxe5 23. Rxf6 Be7 $16)) ({Black should try} 20... Bd7 $15) 21. Bg5 $36 {[%emt 0:01:14][%mdl 2048] White has some pressure.} Bh6 {[%emt 0:00:31]} 22. Bxh6 {[%emt 0:00:22]} Nxh6 {[%emt 0:00:02]} 23. Qg5 {[%emt 0:00:23]} Ng4 {[%emt 0:00:31] Black is on the road to losing.} (23... Kh7 $1 $11) 24. Nd5 $2 {[%emt 0:00:02]} (24. h3 $16 Qe3 25. Qh4) 24... Be6 {[%emt 0:00:16][%mdl 8192]} (24... Kh7 $11) 25. h3 $18 {[%emt 0:00:19]} Kh7 {[%emt 0:00:48]} 26. hxg4 {[%emt 0:00:08]} Bxg4 {[%emt 0:00:01]} 27. Nec3 {[%emt 0:00:10]} Rh8 {[%emt 0:00:05]} 28. Qe3 {[%emt 0:00:43]} Qxe3 {[%emt 0:00:20]} 29. Nxe3 {[%emt 0:00:01] Excellent horsemanship.} Be6 {[%emt 0:00:03]} 30. Rad1 {[%emt 0:00:02]} Rhd8 {[%emt 0:00:05]} 31. Rd2 {[%emt 0:00:06]} Kh6 {[%emt 0:00:10]} 32. Rfd1 {[%emt 0:00:15]} Kg5 {[%emt 0:00:01]} 33. Rxd6 {[%emt 0:00:04]} Rxd6 {[%emt 0:00:02]} 34. Rxd6 {[%emt 0:00:00]} Kxf6 {[%emt 0:00:02]} 35. Ned5+ {[%emt 0:00:05]} Kg5 {[%emt 0:00:12]} 36. Nc7 {[%emt 0:00:03][%csl LRa8,LRe6]} Rg8 {[%emt 0:00:22]} 37. Nxe6+ {[%emt 0:00:14]} fxe6 {[%emt 0:00:00]} 38. Rxe6 {[%emt 0:00:01]} Kf4 {[%emt 0:00:01]} 39. Kh2 {[%emt 0:00:11]} h4 {[%emt 0:00:04]} 40. Re7 {[%emt 0:00:35]} g5 $2 {[%emt 0:00:16]} (40... Rb8 41. Rf7+ Ke3) 41. Nd5+ {[%emt 0:00:06] Weighted Error Value: White=0.56/Black=0.47.  Loses game:     	---       	Black=2      Mistake:       	White=6     	Black=5      Inaccurate:     	White=3     	Black=1      OK:         	White=10    	Black=9      Best:        	White=1     	Black=2} 1-0

[Event "European Women Rapid-ch 2023"]
[Site "Monaco"]
[Date "2024.01.13"]
[Round "2.21"]
[White "De Seroux, Camille"]
[Black "Schulze, Lara"]
[Result "0-1"]
[ECO "A00"]
[WhiteElo "2075"]
[BlackElo "2285"]
[Annotator "TA"]
[PlyCount "80"]
[EventDate "2023.12.19"]
[EventType "swiss"]
[EventCountry "MNC"]
[SourceTitle "playchess.com"]
[Source "ChessBase"]
[SourceQuality "1"]
[TimeControl "900+10"]

{[%evp 9,80,-31,-33,-37,-29,-33,-29,-41,-37,-37,-33,-43,-41,-48,-49,-121,-125,-156,-159,-155,-136,-165,-194,-191,-182,-196,-185,-214,-187,-272,-222,-239,-222,-257,-254,-359,-380,-409,-404,-616,-616,-621,-610,-606,-580,-594,-291,-313,-254,-284,-168,-168,-168,-162,-169,-172,-180,-454,-456,-438,-406,-29979,-29980,-29981,-29982,-29986,-29979,-29989,-29990,-29994,-29993,-29997,-1056]} 1. Nc3 {[%emt 0:01:03]} d5 {[%emt 0:00:15]} 2. Nf3 {[%emt 0:00:03]} Nf6 {[%emt 0:00:14]} 3. d3 {[%emt 0:00:02]} Bg4 {[%emt 0:02:07]} 4. h3 {[%emt 0:02:03]} Bxf3 {[%emt 0:00:10]} 5. gxf3 {[%emt 0:00:16]} c5 {[%emt 0:01:43]} 6. Bg2 {[%emt 0:01:56]} Nc6 {[%emt 0:00:24]} 7. f4 {[%emt 0:01:06]} e6 {[%emt 0:00:16]} 8. e4 {[%emt 0:00:49] Black has an edge.} Be7 {[%emt 0:02:49]} 9. Bd2 {[%emt 0:03:06]} Rc8 {[%emt 0:01:02]} 10. e5 {[%emt 0:01:08]} Nd7 {[%emt 0:00:37]} 11. Qg4 {[%emt 0:00:07]} g6 {[%emt 0:00:36]} 12. O-O-O {[%emt 0:00:23] Black converts the advantage convincingly.} (12. O-O $15) 12... Nd4 $17 {[%emt 0:00:46]} 13. Kb1 {[%emt 0:00:52]} b5 {[%emt 0:01:19]} 14. Rhe1 {[%emt 0:00:59][%cal Of4f5]} Bh4 {[%emt 0:00:25][%cal Oh7h5] [#] And now ...h5! would win.} 15. Bh1 {[%emt 0:02:03]} Bxf2 {[%emt 0:01:35]} 16. Rf1 {[%emt 0:00:03]} Bh4 {[%emt 0:00:09]} 17. Ne2 {[%emt 0:00:04]} Nf5 {[%emt 0:00:38]} 18. Bc1 {[%emt 0:00:06]} Nb6 {[%emt 0:00:51]} 19. Ng1 {[%emt 0:00:12]} (19. Be4 {might work better.}) 19... h5 {[%emt 0:00:43]} 20. Qg2 {[%emt 0:00:07]} b4 {[%emt 0:00:24]} 21. Nf3 {[%emt 0:00:03]} Be7 {[%emt 0:00:11]} 22. d4 {[%emt 0:00:36]} (22. Ng5 $142) 22... c4 $19 {[%emt 0:00:09]} 23. Ng5 {[%emt 0:00:03]} a5 {[%emt 0:00:25]} 24. c3 {[%emt 0:01:08]} (24. h4 $142) 24... bxc3 {[%emt 0:00:09]} 25. bxc3 {[%emt 0:00:01]} Rb8 {[%emt 0:00:09] ...Na4+ is the strong threat.} 26. Ka1 {[%emt 0:00:03]} Qd7 {[%emt 0:00:04]} 27. Bd2 {[%emt 0:00:08]} Bxg5 {[%emt 0:00:10]} (27... Na4 $142 {Threatens to win with ...Rb2.} 28. Rb1 O-O 29. Nxf7 Kxf7 (29... Rxb1+ $2 30. Rxb1 Kxf7 31. Qg1 $19)) 28. fxg5 {[%emt 0:00:09]} O-O {[%emt 0:00:06] White must now prevent ...Na4.} 29. Rb1 {[%emt 0:00:10]} Qa4 {[%emt 0:00:07]} (29... Na4 $142 {...Qe7 would now be deadly.} 30. Qg1 Qa7) 30. Rb2 {[%emt 0:00:21]} Nd7 {[%emt 0:00:03] aiming for ...Rxb2. Excellent horsemanship.} 31. Rfb1 {[%emt 0:00:16]} Rxb2 $40 {[%emt 0:00:05][%mdl 128] Black wants a kill.} 32. Rxb2 {[%emt 0:00:02]} Rb8 {[%emt 0:00:02] ( -> ...Qd1+)} 33. Rxb8+ $2 {[%emt 0:00:24]} (33. Qf1 {was worth a try.}) 33... Nxb8 {[%emt 0:00:01]} 34. Qg1 {[%emt 0:00:10] Prevents Qd1+.} Qc2 {[%emt 0:00:09]} 35. Qb1 {[%emt 0:00:14] [#]} (35. Qe1 $19) 35... Qxd2 {[%emt 0:00:13] Black mates.} 36. Qxb8+ {[%emt 0:00:02]} Kg7 {[%emt 0:00:01]} 37. Bxd5 {[%emt 0:00:43]} Qxc3+ {[%emt 0:00:13]} 38. Kb1 {[%emt 0:00:01]} Qd3+ {[%emt 0:00:15]} 39. Kc1 {[%emt 0:00:17]} Nxd4 {[%emt 0:00:43][%csl Gd4][%cal Rd3c2]} 40. Qb2 {[%emt 0:00:04]} Ne2+ {[%emt 0:00:09] Weighted Error Value: White=0.56/Black=0.18 (very precise) .  Mistake:       	White=6     	Black=1      OK:         	White=9     	Black=17     Best:        	---       	Black=1} (40... Qf1+ $142 41. Kd2 Qe2+ 42. Kc3 Qd3#) 0-1

[Event "European Women Rapid-ch 2023"]
[Site "Monaco"]
[Date "2024.01.13"]
[Round "2.22"]
[White "Kulon, Klaudia"]
[Black "Hryshchenko, Kamila"]
[Result "1-0"]
[ECO "A21"]
[WhiteElo "2323"]
[BlackElo "2192"]
[Annotator "RC"]
[PlyCount "83"]
[EventDate "2023.12.19"]
[EventType "swiss"]
[EventCountry "MNC"]
[SourceTitle "playchess.com"]
[Source "ChessBase"]
[SourceQuality "1"]
[TimeControl "900+10"]

1. c4 {[%emt 0:00:02]} d6 {[%emt 0:00:02]} 2. g3 {[%emt 0:00:03]} e5 {[%emt 0:00:05]} 3. Bg2 {[%emt 0:00:02]} f5 {[%emt 0:00:02]} 4. Nc3 {[%emt 0:00:01]} Nf6 {[%emt 0:00:02]} 5. d3 {[%emt 0:00:04]} Be7 {[%emt 0:00:02]} 6. e4 {[%emt 0:00:03]} Nc6 {[%emt 0:00:02]} 7. Nge2 {[%emt 0:00:06]} O-O {[%emt 0:00:06]} 8. O-O {[%emt 0:00:13]} a6 {[%emt 0:00:05]} 9. Rb1 {[%emt 0:00:13]} fxe4 {[%emt 0:00:59]} 10. dxe4 {[%emt 0:00:02]} Bg4 {[%emt 0:00:58]} 11. h3 {[%emt 0:00:09]} Be6 {[%emt 0:00:05]} 12. Nd5 {[%emt 0:00:05]} Qd7 {[%emt 0:02:17]} 13. Kh2 {[%emt 0:00:10]} b5 {[%emt 0:00:29]} 14. b3 {[%emt 0:00:40]} Rfb8 {[%emt 0:00:31]} 15. Be3 {[%emt 0:00:19]} bxc4 {[%emt 0:00:45]} 16. bxc4 {[%emt 0:00:02]} Na5 {[%emt 0:00:09]} 17. Qc2 {[%emt 0:00:40]} Bd8 {[%emt 0:00:36]} 18. Bd2 {[%emt 0:02:53]} c6 {[%emt 0:03:18]} 19. Nxf6+ {[%emt 0:01:24]} gxf6 {[%emt 0:00:03]} 20. Bxa5 {[%emt 0:00:02]} Bxa5 {[%emt 0:00:01]} 21. f4 {[%emt 0:00:01]} Bb6 {[%emt 0:02:04]} 22. f5 {[%emt 0:04:43]} Bf7 {[%emt 0:00:02]} 23. Rb3 {[%emt 0:00:01]} Bc5 {[%emt 0:01:12]} 24. g4 {[%emt 0:00:02]} a5 {[%emt 0:01:38]} 25. h4 {[%emt 0:00:10]} h6 {[%emt 0:00:19]} 26. Qc1 {[%emt 0:00:30]} Kg7 {[%emt 0:00:39]} 27. g5 {[%emt 0:00:36]} Rb4 {[%emt 0:01:39]} 28. gxf6+ {[%emt 0:03:22]} Kh7 {[%emt 0:00:06]} 29. Rg3 {[%emt 0:00:02]} Rg8 {[%emt 0:00:02]} 30. Rg6 {[%emt 0:00:40]} Rxg6 {[%emt 0:00:59]} 31. fxg6+ {[%emt 0:00:03]} Bxg6 {[%emt 0:00:06]} 32. f7 {[%emt 0:00:52]} Bxf7 {[%emt 0:00:15]} 33. Rf6 {[%emt 0:00:01]} Kg8 {[%emt 0:00:41]} 34. Qxh6 {[%emt 0:00:39]} Qg4 {[%emt 0:00:02]} 35. Rf3 {[%emt 0:00:31]} Bf2 {[%emt 0:00:26]} 36. Rxf2 {[%emt 0:00:07]} Qg6 {[%emt 0:00:03]} 37. Qe3 {[%emt 0:00:18]} Rxc4 {[%emt 0:00:07]} 38. Ng3 {[%emt 0:00:07]} Qg4 {[%emt 0:00:19]} 39. Nf5 {[%emt 0:00:08]} Kf8 {[%emt 0:00:03]} 40. Qa7 {[%emt 0:00:11]} Rc3 {[%emt 0:00:09]} 41. Qe7+ {[%emt 0:00:07]} Kg8 {[%emt 0:00:01]} 42. Nh6+ {[%emt 0:00:02]} 1-0

[Event "European Women Rapid-ch 2023"]
[Site "Monaco"]
[Date "2024.01.13"]
[Round "2.23"]
[White "Collado Barbas, Laura"]
[Black "Papp, Petra"]
[Result "0-1"]
[ECO "D91"]
[WhiteElo "2037"]
[BlackElo "2267"]
[Annotator "TA"]
[PlyCount "66"]
[EventDate "2023.12.19"]
[EventType "swiss"]
[EventCountry "MNC"]
[SourceTitle "playchess.com"]
[Source "ChessBase"]
[SourceQuality "1"]
[TimeControl "900+10"]

{[%evp 21,66,-37,-24,-31,-20,-29,-12,-27,0,-16,-14,-5,18,-14,37,-33,27,-20,25,6,-6,-9,16,-26,6,-46,29,0,20,-59,-49,-56,-39,-87,-95,-114,-106,-129,-131,-473,-458,-455,-247,-247,-202,-281,-248]} 1. d4 {[%emt 0:00:02]} Nf6 {[%emt 0:00:03]} 2. c4 {[%emt 0:00:03]} g6 {[%emt 0:00:02]} 3. Nc3 {[%emt 0:00:02]} d5 {[%emt 0:00:04]} 4. Nf3 {[%emt 0:00:05][%cal Bg1f3,Bf3g5,Bg5h3,Bh3f4][%mdl 32]} Bg7 {[%emt 0:00:01]} 5. Bg5 {[%emt 0:00:06]} Ne4 {[%emt 0:00:46]} 6. cxd5 {[%emt 0:00:08]} Nxg5 {[%emt 0:00:32]} 7. Nxg5 {[%emt 0:00:03]} e6 {[%emt 0:00:10]} 8. Qd2 {[%emt 0:00:33]} h6 {[%emt 0:01:26]} 9. Nh3 {[%emt 0:01:16]} exd5 {[%emt 0:00:10]} 10. Qe3+ {[%emt 0:00:18]} Kf8 {[%emt 0:01:06]} 11. Nf4 {[%emt 0:02:09]} c6 {[%emt 0:00:04]} 12. Qf3 {[%emt 0:00:55]} Qf6 {[%emt 0:00:59][%cal Og6g5]} ({Natürlich nicht} 12... Bxd4 $6 13. Nxg6+ Kg8 14. Nxh8 Bxh8 15. Rd1 $16) 13. e3 {[%emt 0:00:19]} h5 {[%emt 0:00:18]} 14. Qd1 {[%emt 0:04:28] Die Stellung ist ausgeglichen.} Bf5 {[%emt 0:04:32]} 15. Qb3 {[%emt 0:02:02]} Qe7 {[%emt 0:01:17][%cal Og6g5]} 16. Be2 {[%emt 0:01:06]} Kg8 {[%emt 0:01:03]} 17. h3 {[%emt 0:00:46]} (17. Rc1 $5) 17... h4 {[%emt 0:00:21]} (17... Bc8 $11) 18. O-O-O {[%emt 0:01:11]} (18. Rc1 $14) 18... Na6 {[%emt 0:01:37]} (18... g5 $15 19. Nh5 Bg6) 19. Rhe1 {[%emt 0:00:11]} (19. Bg4 $142) 19... Qb4 {[%emt 0:01:53]} 20. Qxb4 {[%emt 0:01:53]} Nxb4 {[%emt 0:00:01]} 21. a3 {[%emt 0:00:02]} Na6 {[%emt 0:01:12]} (21... g5 $5) 22. Nd3 {[%emt 0:00:39]} Re8 {[%emt 0:00:10]} 23. Bf1 {[%emt 0:00:12]} (23. Kd2 $11) 23... b5 {[%emt 0:00:03]} (23... Bf8 $15) 24. Na2 {[%emt 0:00:25]} Nb8 {[%emt 0:00:33]} 25. Nab4 {[%emt 0:00:04]} ({Besser ist} 25. Kd2 $11) 25... a5 $15 {[%emt 0:00:02]} 26. Nc2 {[%emt 0:00:02]} Nd7 {[%emt 0:00:04]} 27. f3 {[%emt 0:00:01]} (27. Kb1 $15 {verdient Beachtung.}) 27... Bh6 $17 {[%emt 0:00:09] Schwarz steht deutlich aktiver. Die weißen Türme stehen passiv.} 28. Kb1 {[%emt 0:00:26]} Kg7 $36 {[%emt 0:00:03][%mdl 2048] Schwarz hat starke Initiative.} 29. Rd2 {[%emt 0:00:17]} Re7 {[%emt 0:00:05]} 30. e4 $2 {[%emt 0:00:14][%mdl 8192] [#] Ein Fehler, der zur Niederlage führt.} (30. b3 $17 {leistet mehr Widerstand.}) 30... dxe4 {[%emt 0:00:07]} 31. fxe4 {[%emt 0:00:09]} Bxe4 {[%emt 0:00:03]} (31... Bxd2 $142 32. exf5 Bxe1 33. Ndxe1 gxf5) 32. Rde2 {[%emt 0:00:01]} Rhe8 {[%emt 0:00:06]} 33. Ka1 {[%emt 0:00:19]} Kf8 {[%emt 0:00:10] Gewichteter Fehlerwert: Weiß=0.53/Schwarz=0.37.  Verlustzug:     	Weiß=1     	---        Fehler:       	Weiß=5     	Schwarz=4     Ungenau:       	Weiß=4     	Schwarz=3     OK:         	Weiß=3     	Schwarz=6} ({Weniger gut wäre} 33... Bxd3 34. Rxe7 Rxe7 (34... Bxc2 $2 {geht unter.} 35. Rxe8 Nf6 36. Rc8 $18) 35. Bxd3 Rxe1+ 36. Nxe1 $17) 0-1

[Event "European Women Rapid-ch 2023"]
[Site "Monaco"]
[Date "2024.01.13"]
[Round "2.24"]
[White "Unuk, Laura"]
[Black "Lezhepekova, Veronika"]
[Result "1-0"]
[ECO "D78"]
[WhiteElo "2346"]
[BlackElo "1935"]
[Annotator "RC"]
[PlyCount "53"]
[EventDate "2023.12.19"]
[EventType "swiss"]
[EventCountry "MNC"]
[SourceTitle "playchess.com"]
[Source "ChessBase"]
[SourceQuality "1"]
[TimeControl "900+10"]

1. d4 {[%emt 0:00:02]} d5 {[%emt 0:00:01]} 2. Nf3 {[%emt 0:00:02]} Nf6 {[%emt 0:00:02]} 3. g3 {[%emt 0:00:05]} c6 {[%emt 0:00:06]} 4. Bg2 {[%emt 0:00:02]} g6 {[%emt 0:00:10]} 5. O-O {[%emt 0:00:03]} Bg7 {[%emt 0:00:01]} 6. c4 {[%emt 0:00:07]} O-O {[%emt 0:00:07]} 7. a4 {[%emt 0:00:02]} a5 {[%emt 0:00:15]} 8. cxd5 {[%emt 0:00:04]} cxd5 {[%emt 0:00:05]} 9. Qb3 {[%emt 0:00:43]} Na6 {[%emt 0:00:28]} 10. Nc3 {[%emt 0:00:20]} Nb4 {[%emt 0:00:14]} 11. Bf4 {[%emt 0:00:36]} Bf5 {[%emt 0:00:09]} 12. Rac1 {[%emt 0:00:20]} Rc8 {[%emt 0:00:47]} 13. Nh4 {[%emt 0:01:41]} Qd7 {[%emt 0:01:32]} 14. Nxf5 {[%emt 0:00:28]} gxf5 {[%emt 0:00:34]} 15. Be5 {[%emt 0:00:51]} e6 {[%emt 0:00:19]} 16. Nb5 {[%emt 0:01:05]} Ne4 {[%emt 0:00:48]} 17. Bxg7 {[%emt 0:00:42]} Kxg7 {[%emt 0:00:07]} 18. Qe3 {[%emt 0:00:15]} Rc6 {[%emt 0:01:59]} 19. f3 {[%emt 0:00:51]} Nd6 {[%emt 0:00:02]} 20. Qg5+ {[%emt 0:05:26]} Kh8 {[%emt 0:00:06]} 21. Qf6+ {[%emt 0:00:09]} Kg8 {[%emt 0:00:02]} 22. g4 {[%emt 0:00:49]} Nc4 {[%emt 0:02:50]} 23. Qg5+ {[%emt 0:00:14]} Kh8 {[%emt 0:00:03]} 24. b3 {[%emt 0:00:41]} f6 {[%emt 0:00:18]} 25. Qh6 {[%emt 0:00:09]} Rcc8 {[%emt 0:02:25]} 26. bxc4 {[%emt 0:00:05]} dxc4 {[%emt 0:00:03]} 27. Rxc4 {[%emt 0:00:06]} 1-0